bitfinex/quotes_ETHUSD_20240817
["timestamp","ask_amount","ask_price","bid_price","bid_amount"]
[1723898374593,6.50963668,2607.9,2607.6,2.87618]
[1723898374805,6.50963668,2607.9,2607.7,2.87608]
[1723898375138,26.27963668,2607.9,2607.7,2.87608]
[1723898378374,26.27963668,2607.9,2607.7,2.87601]
[1723898378548,22.1567,2607.9,2607.7,2.87601]
[1723898380021,22.1567,2607.9,2607.8,2.87598]
[1723898383083,19.77,2607.9,2607.8,2.87598]
[1723898383470,19.77,2607.9,2607.8,5.75196]
[1723898386783,19.77,2607.9,2607.8,7.08577207]
[1723898387103,22.92863345,2608.0,2607.9,2.87587]
[1723898388682,25.31473345,2608.0,2607.9,2.87587]
[1723898392308,25.31473345,2608.0,2607.8,2.87598]
[1723898392489,25.31473345,2608.0,2607.8,5.75189]
[1723898393112,19.77,2607.9,2607.8,5.75189]
[1723898397613,19.77,2607.9,2607.8,2.87591]
[1723898398907,25.31473345,2608.0,2607.9,2.87587]
[1723898399331,27.97870679,2608.0,2607.9,2.87587]
[1723898401439,25.31473345,2608.0,2607.9,2.87587]
[1723898402264,22.92863345,2608.0,2607.9,2.87587]
[1723898407160,22.92863345,2608.0,2607.9,12.34078038]
[1723898407453,22.92863345,2608.0,2607.9,14.89139164]
[1723898408027,22.92863345,2608.0,2607.9,14.8913761]
[1723898408228,22.92863345,2608.0,2607.9,12.6360761]
[1723898408537,22.92863345,2608.0,2607.9,10.63553292]
[1723898410840,3.15863345,2608.0,2607.9,10.63553292]
[1723898412928,3.15863345,2608.0,2607.9,9.30174]
[1723898413363,3.15863345,2608.0,2607.9,10.63553143]
[1723898413537,3.15863345,2608.0,2607.9,5.87587]
[1723898416461,5.55383345,2608.0,2607.9,5.87587]
[1723898418248,5.55383345,2608.0,2607.6,2.87613]
[1723898418249,7.5667168,2608.0,2607.6,2.87613]
[1723898418755,7.5667168,2608.0,2607.7,2.87609]
[1723898421271,7.5667168,2608.0,2607.6,5.75225]
[1723898421470,7.5667168,2608.0,2607.7,2.87607]
[1723898422381,6.87883345,2608.0,2607.7,2.87607]
[1723898422755,19.77,2607.9,2607.7,2.87607]
[1723898424496,19.77,2607.9,2607.8,2.87598]
[1723898428803,5.55383345,2608.0,2607.8,2.87598]
[1723898429370,5.55383345,2608.0,2607.9,2.87587]
[1723898434986,3.15863345,2608.0,2607.9,2.87587]
[1723898438600,3.15863345,2608.0,2607.6,0.79944221]
[1723898438601,3.15863345,2608.0,2607.6,2.87613]
[1723898438911,3.15863345,2608.0,2607.7,2.87608]
[1723898438912,4.72286334,2607.9,2607.7,2.87608]
[1723898439101,2.43,2607.9,2607.6,2.8762]
[1723898440374,5.38592835,2607.9,2607.6,2.8762]
[1723898440579,25.15592835,2607.9,2607.6,2.8762]
[1723898442989,3.755,2607.8,2607.4,8.7527]
[1723898443196,3.755,2607.8,2607.5,1.33403387]
[1723898443197,7.00653918,2607.8,2607.5,1.33403387]
[1723898443415,3.755,2607.8,2607.5,2.87631]
[1723898443619,3.755,2607.8,2607.6,3.0]
[1723898445390,2.43,2607.8,2607.6,2.87619]
[1723898445690,19.77,2607.9,2607.6,2.87619]
[1723898446601,19.77,2607.9,2607.6,2.87615]
[1723898446980,19.77,2607.9,2607.6,2.87614]
[1723898447316,19.77,2607.9,2607.6,5.75228]
[1723898448178,19.77,2607.9,2607.6,2.87614]
[1723898448794,19.77,2607.9,2607.7,2.87607]
[1723898451006,19.77,2607.9,2607.6,2.87614]
[1723898451321,21.19310688,2607.9,2607.7,2.87607]
[1723898451522,19.77,2607.9,2607.7,2.87607]
[1723898452421,19.77,2607.9,2607.8,2.87598]
[1723898453084,19.77,2607.9,2607.8,5.75196]
[1723898453390,19.77,2607.9,2607.8,6.30196]
[1723898455410,19.77,2607.9,2607.8,9.30196]
[1723898456794,19.77,2607.9,2607.8,12.63632978]
[1723898457302,19.77,2607.9,2607.8,17.91140978]
[1723898459414,19.77,2607.9,2607.8,15.51230978]
[1723898460538,19.77,2607.9,2607.8,12.17794]
[1723898462536,19.77,2607.9,2607.8,15.51230035]
[1723898464542,19.77,2607.9,2607.8,15.51239308]
[1723898469136,19.77,2607.9,2607.8,13.51172123]
[1723898469343,19.77,2607.9,2607.8,15.51230841]
[1723898470359,3.15863345,2608.0,2607.9,5.75174]
[1723898470568,3.15863345,2608.0,2607.9,10.63548736]
[1723898471754,3.15863345,2608.0,2607.9,9.30174]
[1723898481274,3.15863345,2608.0,2607.9,10.63548037]
[1723898481975,3.15863345,2608.0,2607.9,10.63547515]
[1723898482148,3.15863345,2608.0,2607.9,9.30174]
[1723898483664,3.15863345,2608.0,2607.9,10.63548397]
[1723898485475,3.15863345,2608.0,2607.9,15.96795397]
[1723898485674,3.15863345,2608.0,2607.9,17.96853846]
[1723898485882,3.15863345,2608.0,2607.9,18.77127552]
[1723898486171,3.15863345,2608.0,2607.9,21.83974621]
[1723898486673,3.15863345,2608.0,2607.9,21.83785405]
[1723898487250,3.15863345,2608.0,2607.9,22.24111474]
[1723898488149,3.15863345,2608.0,2607.9,22.24040521]
[1723898490172,3.15863345,2608.0,2607.9,21.83708878]
[1723898490511,3.15863345,2608.0,2607.9,22.24040521]
[1723898490691,3.15863345,2608.0,2607.9,21.83731277]
[1723898490899,3.15863345,2608.0,2607.9,20.63493109]
[1723898491204,3.15863345,2608.0,2607.9,22.24040521]
[1723898491407,3.15863345,2608.0,2607.9,20.63493109]
[1723898491709,3.15863345,2608.0,2607.9,22.24040521]
[1723898492808,3.15863345,2608.0,2607.9,22.24051519]
[1723898493279,3.15863345,2608.0,2607.9,21.83746598]
[1723898495676,3.15863345,2608.0,2607.9,20.63504107]
[1723898496394,3.15863345,2608.0,2607.9,19.16998615]
[1723898496613,3.15863345,2608.0,2607.9,21.83708831]
[1723898497528,3.15863345,2608.0,2607.9,21.83716435]
[1723898497734,3.15863345,2608.0,2607.9,20.63511711]
[1723898498223,3.15863345,2608.0,2607.9,13.28744061]
[1723898498435,3.15863345,2608.0,2607.9,7.08526198]
[1723898498639,3.15863345,2608.0,2607.9,9.08574612]
[1723898499652,3.15863345,2608.0,2607.9,12.88713148]
[1723898499807,3.15863345,2608.0,2607.9,13.43713148]
[1723898500007,3.15863345,2608.0,2607.9,12.63574612]
[1723898500223,3.15863345,2608.0,2607.9,16.31300148]
[1723898502129,3.15863345,2608.0,2607.9,15.5116535]
[1723898502943,3.15863345,2608.0,2607.9,12.6357835]
[1723898504156,5.64483345,2608.0,2607.9,12.6357835]
[1723898504467,5.64483345,2608.0,2607.9,9.30174]
[1723898505368,5.64483345,2608.0,2607.9,10.63544708]
[1723898505833,3.15863345,2608.0,2607.9,12.63597059]
[1723898506035,3.15863345,2608.0,2607.9,10.63544708]
[1723898506674,3.15863345,2608.0,2607.9,11.30226642]
[1723898506878,3.15863345,2608.0,2607.9,12.63590595]
[1723898507194,5.64483345,2608.0,2607.9,10.63546557]
[1723898508987,3.15863345,2608.0,2607.9,12.63601933]
[1723898509294,3.15863345,2608.0,2607.9,16.31327469]
[1723898511370,3.15863345,2608.0,2607.9,16.31306047]
[1723898511984,5.64483345,2608.0,2607.9,10.01132047]
[1723898512180,5.9606968,2608.0,2607.9,5.87587]
[1723898513586,5.64483345,2608.0,2607.9,5.87587]
[1723898518129,5.64483345,2608.0,2607.9,2.87587]
[1723898524177,2.3478,2607.9,2607.8,2.87595]
[1723898524349,2.3478,2607.9,2607.8,6.42595]
[1723898526131,2.3478,2607.9,2607.8,5.87595]
[1723898526378,2.3478,2607.8,2607.5,2.87631]
[1723898526581,0.46956,2607.7,2607.5,2.87631]
[1723898526938,2.3478,2607.6,2607.5,2.87631]
[1723898527784,2.3478,2607.6,2607.5,5.87631]
[1723898532666,22.1178,2607.8,2607.6,2.87618]
[1723898533957,22.1178,2607.8,2607.7,2.87609]
[1723898534200,19.77,2607.8,2607.7,2.87609]
[1723898535771,25.41273345,2608.0,2607.8,2.87598]
[1723898536269,3.41877335,2607.9,2607.8,2.87598]
[1723898537201,5.90287335,2607.9,2607.8,2.87598]
[1723898541201,2.3228,2607.8,2607.6,5.75231]
[1723898541395,5.18982068,2607.8,2607.6,5.75231]
[1723898542928,5.18982068,2607.8,2607.6,5.75227]
[1723898544605,5.18982068,2607.8,2607.7,2.87609]
[1723898545031,5.18982068,2607.8,2607.6,5.75227]
[1723898545228,2.3228,2607.8,2607.6,5.75227]
[1723898545531,2.3228,2607.8,2607.7,2.87609]
[1723898547097,2.3228,2607.8,2607.6,2.87613]
[1723898547593,22.0928,2607.8,2607.6,2.87613]
[1723898547791,24.75044334,2607.8,2607.6,2.87613]
[1723898548737,24.75044334,2607.8,2607.4,2.87642]
[1723898548738,2.3228,2607.7,2607.4,5.75275]
[1723898549485,2.3228,2607.7,2607.5,2.87628]
[1723898549696,4.66719292,2607.7,2607.5,2.87628]
[1723898551247,4.66719292,2607.7,2607.4,2.87633]
[1723898551793,3.6478,2607.6,2607.2,5.87658]
[1723898552098,2.3228,2607.5,2607.2,5.87658]
[1723898552593,2.3228,2607.5,2607.2,8.75317]
[1723898552960,2.3228,2607.5,2607.3,2.87653]
[1723898553305,19.77,2607.6,2607.2,5.3804]
[1723898553470,19.77,2607.6,2607.5,2.87631]
[1723898553665,19.77,2607.6,2607.5,3.42631]
[1723898554957,19.77,2607.6,2607.5,6.30262]
[1723898556697,2.4455,2607.8,2607.6,2.87613]
[1723898557755,2.4455,2607.8,2607.5,3.42631]
[1723898557963,19.77,2607.9,2607.7,2.87609]
[1723898560762,19.77,2607.9,2607.7,5.75212]
[1723898560997,19.77,2607.9,2607.7,2.87603]
[1723898561594,19.77,2607.9,2607.8,2.87598]
[1723898561760,19.77,2607.9,2607.7,2.87603]
[1723898566403,19.77,2607.9,2607.6,2.87618]
[1723898566582,19.77,2607.9,2607.6,3.29892549]
[1723898566988,19.77,2607.9,2607.7,2.87603]
[1723898567990,19.77,2607.9,2607.8,2.87598]
[1723898568391,19.77,2607.9,2607.8,3.42598]
[1723898569714,22.1273,2607.9,2607.8,0.55]
[1723898572915,22.1273,2607.9,2607.8,3.42598]
[1723898574599,19.77,2607.9,2607.8,3.42598]
[1723898577485,4.48363345,2608.0,2607.8,3.42598]
[1723898580475,3.15863345,2608.0,2607.8,3.42598]
[1723898581913,3.15863345,2608.0,2607.9,2.87587]
[1723898582077,3.15863345,2608.0,2607.9,3.42587]
[1723898582408,3.15863345,2608.0,2607.9,5.90567]
[1723898582611,3.15863345,2608.0,2607.9,11.78154]
[1723898582801,3.15863345,2608.0,2607.9,13.11528382]
[1723898583205,3.15863345,2608.0,2607.9,15.11582974]
[1723898583578,3.15863345,2608.0,2607.9,13.11528382]
[1723898583973,3.15863345,2608.0,2607.9,11.78154]
[1723898584174,3.15863345,2608.0,2607.9,13.11526036]
[1723898585595,3.15863345,2608.0,2607.9,11.78154]
[1723898586820,3.15863345,2608.0,2607.9,13.11524709]
[1723898586994,3.15863345,2608.0,2607.9,11.78154]
[1723898587189,3.15863345,2608.0,2607.9,13.11523117]
[1723898587609,3.15863345,2608.0,2607.9,11.78154]
[1723898588314,3.15863345,2608.0,2607.9,15.99107097]
[1723898588520,3.15863345,2608.0,2607.9,14.65741]
[1723898589189,3.15863345,2608.0,2607.9,15.9911185]
[1723898589409,3.15863345,2608.0,2607.9,14.65741]
[1723898591111,3.15863345,2608.0,2607.9,15.99108096]
[1723898591707,3.15863345,2608.0,2607.9,14.65741]
[1723898592097,3.15863345,2608.0,2607.9,12.17761]
[1723898592428,3.15863345,2608.0,2607.9,9.30174]
[1723898600650,5.55153345,2608.0,2607.9,5.87587]
[1723898601738,5.55153345,2608.0,2607.9,8.75174]
[1723898606214,3.15863345,2608.0,2607.9,8.75174]
[1723898606419,3.15863345,2608.0,2607.9,9.30174]
[1723898618944,3.15863345,2608.0,2607.9,10.63548352]
[1723898619256,3.15863345,2608.0,2607.9,9.30174]
[1723898619462,3.15863345,2608.0,2607.9,10.63549409]
[1723898620354,3.15863345,2608.0,2607.9,10.63550162]
[1723898624174,3.15863345,2608.0,2607.9,12.63613306]
[1723898628382,3.15863345,2608.0,2607.9,12.63610058]
[1723898633253,3.15863345,2608.0,2607.9,12.63607353]
[1723898638057,3.15863345,2608.0,2607.9,12.63609208]
[1723898639847,5.51653345,2608.0,2607.9,2.87587]
[1723898640053,6.05908679,2608.0,2607.9,2.87587]
[1723898643790,5.51653345,2608.0,2607.9,2.87587]
[1723898653413,5.51653345,2608.0,2607.8,0.15242634]
[1723898653414,8.39229345,2608.0,2607.8,0.15242634]
[1723898653705,22.0911,2607.9,2607.8,0.15242634]
[1723898653903,24.90364935,2607.9,2607.8,0.15242634]
[1723898656178,26.22864935,2607.9,2607.8,0.15242634]
[1723898659376,29.10451935,2607.9,2607.8,0.15242634]
[1723898671591,24.90364935,2607.9,2607.8,0.15242634]
[1723898671800,29.10451935,2607.9,2607.8,0.15242634]
[1723898677951,26.22864935,2607.9,2607.8,0.15242634]
[1723898678642,23.90754935,2607.9,2607.8,0.15242634]
[1723898680336,26.78341935,2607.9,2607.8,0.15242634]
[1723898680543,29.23101935,2607.9,2607.8,0.15242634]
[1723898702504,19.77,2607.9,2607.8,0.15242634]
[1723898704695,19.77,2607.9,2607.8,9.62453696]
[1723898705075,19.77,2607.9,2607.8,8.29068634]
[1723898705701,19.77,2607.9,2607.8,5.41470634]
[1723898706803,19.77,2607.9,2607.8,5.96470634]
[1723898707790,19.77,2607.9,2607.8,8.84068634]
[1723898707989,19.77,2607.9,2607.8,10.17450899]
[1723898708184,19.77,2607.9,2607.8,8.84068634]
[1723898710699,19.77,2607.9,2607.8,11.84068634]
[1723898714134,19.77,2607.9,2607.8,13.1744356]
[1723898714345,19.77,2607.9,2607.8,15.17499019]
[1723898714533,19.77,2607.9,2607.8,17.3754156]
[1723898714733,19.77,2607.9,2607.8,19.37596674]
[1723898715415,19.77,2607.9,2607.8,17.3754156]
[1723898715613,19.77,2607.9,2607.8,19.3759708]
[1723898715843,19.77,2607.9,2607.8,17.3754156]
[1723898716146,19.77,2607.9,2607.8,19.37597089]
[1723898716311,19.77,2607.9,2607.8,11.84068634]
[1723898718460,19.77,2607.9,2607.8,14.71666634]
[1723898718661,3.15863345,2608.0,2607.9,11.11851]
[1723898718860,3.15863345,2608.0,2607.9,14.66851]
[1723898738698,3.15863345,2608.0,2607.9,12.17761]
[1723898745416,3.15863345,2608.0,2607.9,13.51126948]
[1723898748303,3.15863345,2608.0,2607.9,15.51175822]
[1723898750622,3.15863345,2608.0,2607.9,16.31303316]
[1723898750917,3.15863345,2608.0,2607.9,15.51175822]
[1723898751222,3.15863345,2608.0,2607.9,16.31303316]
[1723898752520,3.15863345,2608.0,2607.9,16.31296614]
[1723898753082,3.15863345,2608.0,2607.9,15.5116912]
[1723898753326,3.15863345,2608.0,2607.9,16.31296614]
[1723898753684,3.15863345,2608.0,2607.9,15.5116912]
[1723898754221,3.15863345,2608.0,2607.9,16.31296614]
[1723898754382,3.15863345,2608.0,2607.9,12.88709614]
[1723898754585,3.15863345,2608.0,2607.9,8.75174]
[1723898754825,3.15863345,2608.0,2607.9,10.08546934]
[1723898755119,3.15863345,2608.0,2607.9,8.75174]
[1723898755897,5.62433345,2608.0,2607.9,10.63555974]
[1723898756132,5.62433345,2608.0,2607.9,9.30174]
[1723898756534,5.62433345,2608.0,2607.9,10.63556261]
[1723898756721,5.62433345,2608.0,2607.9,9.30174]
[1723898757125,5.62433345,2608.0,2607.9,10.63557155]
[1723898757525,5.62433345,2608.0,2607.9,10.63556318]
[1723898758042,5.62433345,2608.0,2607.9,12.63624598]
[1723898758239,5.62433345,2608.0,2607.9,12.63624709]
[1723898761116,3.15863345,2608.0,2607.9,15.51211709]
[1723898761320,3.15863345,2608.0,2607.9,16.31339203]
[1723898762148,3.15863345,2608.0,2607.9,15.51211709]
[1723898763554,3.15863345,2608.0,2607.9,16.31339203]
[1723898764619,3.15863345,2608.0,2607.9,16.31315094]
[1723898765536,3.15863345,2608.0,2607.9,15.511876]
[1723898769747,3.15863345,2608.0,2607.9,15.51195068]
[1723898770473,3.15863345,2608.0,2607.9,12.63608068]
[1723898772477,3.15863345,2608.0,2607.9,9.30174]
[1723898773089,3.15863345,2608.0,2607.9,8.75174]
[1723898780040,3.15863345,2608.0,2607.9,10.63553812]
[1723898780396,3.15863345,2608.0,2607.9,10.63550173]
[1723898780596,3.15863345,2608.0,2607.9,12.63607976]
[1723898782484,3.15863345,2608.0,2607.9,10.6354759]
[1723898782654,3.15863345,2608.0,2607.9,9.30174]
[1723898782856,3.15863345,2608.0,2607.9,10.63553773]
[1723898783890,3.15863345,2608.0,2607.9,10.63551385]
[1723898784248,3.15863345,2608.0,2607.9,9.30174]
[1723898784950,3.15863345,2608.0,2607.9,10.63549681]
[1723898786250,3.15863345,2608.0,2607.9,12.63609847]
[1723898786695,3.15863345,2608.0,2607.9,10.63549681]
[1723898788312,3.15863345,2608.0,2607.9,9.30174]
[1723898789060,3.15863345,2608.0,2607.9,10.63552161]
[1723898789679,3.15863345,2608.0,2607.9,9.30174]
[1723898793909,3.15863345,2608.0,2607.9,10.63551435]
[1723898794316,3.15863345,2608.0,2607.9,9.30174]
[1723898794542,3.15863345,2608.0,2607.9,10.63552931]
[1723898797413,3.15863345,2608.0,2607.9,12.63618216]
[1723898797913,3.15863345,2608.0,2607.9,10.63552931]
[1723898798117,3.15863345,2608.0,2607.9,9.30174]
[1723898798297,3.15863345,2608.0,2607.9,12.63614317]
[1723898802908,3.15863345,2608.0,2607.9,10.63550124]
[1723898803111,3.15863345,2608.0,2607.9,12.63613518]
[1723898804254,3.15863345,2608.0,2607.9,10.63550124]
[1723898804408,3.15863345,2608.0,2607.9,12.63618071]
[1723898806541,3.15863345,2608.0,2607.9,10.63550124]
[1723898806915,3.15863345,2608.0,2607.9,12.63616235]
[1723898809650,3.15863345,2608.0,2607.9,10.63550124]
[1723898810311,3.15863345,2608.0,2607.9,12.63617256]
[1723898810511,3.15863345,2608.0,2607.9,10.63550124]
[1723898810921,3.15863345,2608.0,2607.9,12.63611501]
[1723898811319,3.15863345,2608.0,2607.9,17.63825995]
[1723898812041,3.15863345,2608.0,2607.9,16.83698501]
[1723898812246,3.15863345,2608.0,2607.9,17.63968208]
[1723898812444,3.45e-06,2608.0,2607.9,26.25388758]
[1723898812628,19.77,2608.4,2608.3,8.62629]
[1723898812816,19.77,2608.4,2608.3,17.31036761]
[1723898813021,19.77,2608.4,2608.3,23.37881784]
[1723898813243,19.77,2608.4,2608.3,22.976827]
[1723898813642,19.77,2608.4,2608.3,20.30954431]
[1723898814052,19.77,2608.4,2608.3,22.97632209]
[1723898814318,19.77,2608.4,2608.3,19.90858893]
[1723898814556,19.77,2608.4,2608.3,19.10686501]
[1723898814762,19.77,2608.4,2608.3,19.90859228]
[1723898815334,19.77,2608.4,2608.3,17.63739228]
[1723898816269,19.77,2608.4,2608.3,16.83566501]
[1723898816631,19.77,2608.4,2608.3,17.63739228]
[1723898816824,19.77,2608.4,2608.3,17.63651997]
[1723898817030,19.77,2608.4,2608.3,16.8347927]
[1723898818331,19.77,2608.7,2608.6,5.7502]
[1723898818546,19.77,2608.7,2608.6,9.3002]
[1723898822350,2.412,2608.9,2608.8,5.74976]
[1723898822556,2.412,2608.9,2608.8,9.29976]
[1723898828162,3.0463,2609.0,2608.9,5.74954]
[1723898828370,3.0463,2609.0,2608.9,6.29954]
[1723898833811,3.0463,2609.0,2608.9,13.49931]
[1723898835911,3.0463,2609.0,2608.9,14.83233901]
[1723898836253,3.0463,2609.0,2608.9,14.83232079]
[1723898836483,3.0463,2609.0,2608.9,13.49931]
[1723898849607,3.0463,2609.0,2608.9,15.96821]
[1723898850345,3.0463,2609.0,2608.9,13.49931]
[1723898856266,3.0463,2609.0,2608.9,14.83237977]
[1723898857178,3.0463,2609.0,2608.9,16.83198663]
[1723898857743,3.0463,2609.0,2608.9,16.83200834]
[1723898857970,3.0463,2609.0,2608.9,16.83197752]
[1723898858862,3.0463,2609.0,2608.9,12.63220752]
[1723898859048,3.0463,2609.0,2608.9,6.42477]
[1723898859384,3.0463,2609.0,2608.9,9.29954]
[1723898859786,3.0463,2609.1,2609.0,2.87466]
[1723898860080,3.0463,2609.1,2609.0,6.42466]
[1723898864457,5.3393,2609.1,2609.0,6.42466]
[1723898869525,5.3393,2609.1,2609.0,3.0]
[1723898871015,5.3393,2609.1,2608.9,5.87477]
[1723898871216,3.618,2609.0,2608.5,2.87512]
[1723898871387,2.293,2608.9,2608.5,2.87512]
[1723898871589,2.293,2608.8,2608.5,2.87512]
[1723898873489,2.293,2608.8,2608.5,5.75027]
[1723898873976,2.293,2608.8,2608.4,2.87531]
[1723898874179,2.293,2608.8,2608.5,3.0]
[1723898877117,2.293,2608.8,2608.5,5.87521]
[1723898879120,2.293,2608.8,2608.5,3.0]
[1723898879320,2.293,2608.8,2608.4,5.87526]
[1723898879981,2.293,2608.8,2608.4,3.0]
[1723898880482,2.293,2608.8,2608.4,5.87532]
[1723898881326,2.293,2608.8,2608.1,1.325]
[1723898881327,2.2945,2608.7,2608.1,5.75117]
[1723898881495,2.2945,2608.6,2608.2,3.42553]
[1723898881827,2.2945,2608.6,2608.2,6.42553]
[1723898885383,2.2945,2608.6,2608.3,2.8754]
[1723898886700,19.77,2608.6,2608.3,2.8754]
[1723898886922,2.2945,2608.5,2608.3,2.8754]
[1723898888127,2.0961,2608.5,2608.3,2.8754]
[1723898892526,2.0961,2608.5,2608.2,6.42553]
[1723898896014,2.0961,2608.5,2608.2,3.55]
[1723898896727,4.570216,2608.5,2608.2,3.55]
[1723898896891,2.4739,2608.4,2608.2,3.0]
[1723898897087,2.4739,2608.4,2607.9,5.7516]
[1723898897088,2.4739,2608.4,2608.0,3.0]
[1723898897406,2.4739,2608.4,2608.1,0.55]
[1723898901827,2.4739,2608.4,2607.9,5.87578]
[1723898902032,2.4579,2608.4,2608.0,0.55]
[1723898902328,5.33339,2608.3,2607.9,3.0]
[1723898902530,5.33339,2608.3,2607.8,6.02840634]
[1723898902531,2.4579,2608.1,2607.8,6.02840634]
[1723898902706,2.4579,2608.1,2607.9,0.55]
[1723898906018,2.4579,2607.9,2607.8,0.15242634]
[1723898906882,5.33377,2607.9,2607.8,0.15242634]
[1723898909335,2.4579,2607.9,2607.8,0.15242634]
[1723898913368,2.70369,2607.9,2607.8,0.15242634]
[1723898915247,2.4579,2607.9,2607.8,0.15242634]
[1723898915941,2.3318,2608.1,2607.8,0.15242634]
[1723898922340,19.77,2608.0,2607.8,0.15242634]
[1723898924288,2.4362,2607.9,2607.8,0.15242634]
[1723898924555,5.076887,2607.9,2607.8,0.15242634]
[1723898924709,7.952757,2607.9,2607.8,0.15242634]
[1723898925803,30.598627,2607.9,2607.8,0.15242634]
[1723898929780,27.722757,2607.9,2607.8,0.15242634]
[1723898929985,29.047757,2607.9,2607.8,0.15242634]
[1723898931098,31.923627,2607.9,2607.8,0.15242634]
[1723898938830,34.799497,2607.9,2607.8,0.15242634]
[1723898945642,38.841497,2607.9,2607.8,0.15242634]
[1723898961171,2.87628,2607.6,2607.1,2.3163]
[1723898961339,1.325,2607.3,2607.1,2.3163]
[1723898962375,4.20155,2607.3,2607.1,2.3163]
[1723898963185,2.87664,2607.2,2607.1,2.3163]
[1723898963388,2.87681,2607.1,2606.7,2.3163]
[1723898963574,1.325,2606.9,2606.7,2.3163]
[1723898963774,19.61757366,2606.8,2606.7,2.3163]
[1723898968006,19.61757366,2606.8,2606.4,2.3163]
[1723898968192,19.61757366,2606.8,2606.4,5.3163]
[1723898968403,1.325,2606.7,2606.4,2.3163]
[1723898973011,19.61757366,2606.6,2606.3,5.88141]
[1723898974399,19.61757366,2606.6,2606.4,2.87752]
[1723898978341,19.61757366,2606.6,2606.3,8.75897]
[1723898978664,19.61757366,2606.6,2606.4,2.87753]
[1723898979051,19.61757366,2606.5,2606.4,2.87753]
[1723898979365,19.61757366,2606.5,2606.3,5.8814]
[1723898980131,19.61757366,2606.5,2606.3,3.00384]
[1723898980326,21.71183103,2606.5,2606.3,0.00384]
[1723898980565,23.03683103,2606.5,2606.3,0.00384]
[1723898981226,19.61757366,2606.4,2606.3,0.00384]
[1723898986081,19.6166146,2606.4,2606.3,0.00384]
[1723898988945,19.6166146,2606.4,2606.3,0.00299217]
[1723898989291,21.40387226,2606.4,2606.3,0.00299217]
[1723898989592,27.15893226,2606.4,2606.3,0.00299217]
[1723898990387,29.55753226,2606.4,2606.3,0.00299217]
[1723898992746,32.43506226,2606.4,2606.3,0.00299217]
[1723898993296,36.47706226,2606.4,2606.3,0.00299217]
[1723898995811,29.55753226,2606.4,2606.3,0.00299217]
[1723898998047,37.80206226,2606.4,2606.3,0.00299217]
[1723899001053,40.67959226,2606.4,2606.3,0.00299217]
[1723899001255,37.80206226,2606.4,2606.3,0.00299217]
[1723899001663,40.67959226,2606.4,2606.3,0.00299217]
[1723899001805,37.80206226,2606.4,2606.3,0.00299217]
[1723899002430,40.67959226,2606.4,2606.3,0.00299217]
[1723899003028,37.80206226,2606.4,2606.3,0.00299217]
[1723899004975,40.67959226,2606.4,2606.3,0.00299217]
[1723899005275,37.80206226,2606.4,2606.3,0.00299217]
[1723899007259,40.67959226,2606.4,2606.3,0.00299217]
[1723899007425,37.80206226,2606.4,2606.3,0.00299217]
[1723899008464,41.37959226,2606.4,2606.3,0.00299217]
[1723899009843,44.37959226,2606.4,2606.3,0.00299217]
[1723899011441,2.87866,2605.4,2604.8,2.3418]
[1723899011647,1.325,2605.1,2604.8,2.3418]
[1723899011849,1.325,2605.1,2604.8,5.3418]
[1723899013212,2.87871,2605.4,2604.8,5.3418]
[1723899013213,5.75745,2605.4,2604.9,2.4832]
[1723899014027,2.87875,2605.3,2604.9,2.4832]
[1723899014240,2.87871,2605.4,2604.9,2.4832]
[1723899014241,2.87869,2605.4,2604.9,2.4832]
[1723899014412,4.20369,2605.4,2604.9,2.4832]
[1723899014611,7.08241,2605.4,2604.9,2.4832]
[1723899014811,7.08239,2605.4,2604.9,2.4832]
[1723899015051,2.87875,2605.3,2604.9,2.4832]
[1723899016166,5.75756,2605.3,2604.9,2.4832]
[1723899016370,1.325,2605.2,2604.9,2.4832]
[1723899018449,1.325,2605.2,2604.9,5.36238]
[1723899018632,1.325,2605.4,2605.0,2.3201]
[1723899019541,4.20365,2605.4,2605.0,2.3201]
[1723899020563,19.6166146,2605.3,2605.0,2.3201]
[1723899021671,19.6166146,2605.3,2605.0,1.5526]
[1723899025143,1.325,2605.2,2605.0,1.5526]
[1723899026550,19.6166146,2605.1,2605.0,1.5526]
[1723899026753,19.6166146,2605.1,2605.0,4.43167]
[1723899030485,19.6166146,2605.1,2605.0,1.5526]
[1723899032747,19.6166146,2605.1,2604.8,5.4433]
[1723899033059,19.6166146,2605.1,2604.8,8.32254]
[1723899033956,20.9416146,2605.1,2604.8,5.4433]
[1723899034286,21.71077606,2605.0,2604.8,2.4433]
[1723899035167,21.71077606,2605.0,2604.6,5.37107]
[1723899038397,19.6166146,2604.9,2604.6,5.37107]
[1723899040872,19.6166146,2604.9,2604.7,2.8794]
[1723899041076,19.6166146,2604.9,2604.7,2.87935]
[1723899041280,19.6166146,2604.9,2604.8,2.87929]
[1723899041488,19.6166146,2604.9,2604.8,5.19419]
[1723899041696,19.6166146,2604.9,2604.8,8.62348]
[1723899042011,19.6166146,2604.9,2604.8,14.96186208]
[1723899042625,19.6166146,2604.9,2604.8,19.16615208]
[1723899042827,27.0666146,2605.8,2605.6,2.87839]
[1723899042994,2.3964,2606.1,2605.6,5.19329]
[1723899042995,19.6166146,2605.7,2605.6,5.19329]
[1723899043316,21.57827606,2605.7,2605.6,5.19329]
[1723899043517,19.6166146,2605.7,2605.6,5.19329]
[1723899047320,19.6166146,2605.9,2605.6,5.19329]
[1723899049630,19.6166146,2605.9,2605.4,8.07199]
[1723899049782,1.325,2605.8,2605.4,5.19343]
[1723899049975,1.325,2605.8,2605.2,2.87879]
[1723899049976,4.2032,2605.8,2605.3,2.87871]
[1723899050179,6.82335461,2605.8,2605.3,2.87871]
[1723899051218,6.82335461,2605.8,2605.2,5.19369]
[1723899051425,6.82335461,2605.8,2605.3,3.55]
[1723899051592,5.49835461,2605.8,2605.3,6.42874]
[1723899051796,2.16233035,2605.7,2605.3,6.42874]
[1723899053278,21.77894495,2605.7,2605.3,6.42874]
[1723899057632,21.77894495,2605.7,2605.3,3.55]
[1723899057939,2.4571,2605.6,2605.3,3.0]
[1723899058492,2.4571,2605.6,2605.3,5.87874]
[1723899059196,22.0737146,2605.6,2605.3,5.87874]